{"text_format":"2","workbook":"xlsx","n_sheets":1,"sheets":["Лист1"],"not_rendered":{"charts":0,"images":0,"macros":0,"external_links":0,"defined_names":0,"comments":0,"pivot_tables":0},"unopened":[],"bounds":{"document_bytes":16777216,"sheet_cells":100000,"run_cost":"one","rows_first":2000,"rows_last":500,"rows_between":2000,"halvings":0,"cell_chars":16384,"cell_head_chars":4096},"cells_cut":0,"cells_raw":0,"read":"whole","date_system":"1900"}

{"sheet":"Лист1","index":0,"n_rows":32,"n_cols":47,"rows_kept":32,"cut":false,"hidden":false,"merged":[[6,34,6,36],[5,46,7,46],[5,34,5,45],[5,2,7,2],[6,7,6,12],[6,19,6,24],[6,31,6,33],[5,4,7,4],[6,43,6,45],[31,1,31,6],[1,1,1,12],[6,13,6,18],[5,3,7,3],[23,1,23,46],[2,1,2,6],[6,37,6,39],[6,25,6,30],[5,5,7,5],[15,1,15,46],[3,1,3,6],[8,1,8,46],[5,7,5,33],[5,6,7,6],[5,1,7,1],[6,40,6,42]]}
[{"$nulls":4},"Отправить данные в минэкономики"]
[null,"Выполнение проектов/мероприятий программы развития производительных сил ","Выполнение проектов/мероприятий программы развития производительных сил ","Выполнение проектов/мероприятий программы развития производительных сил ","Выполнение проектов/мероприятий программы развития производительных сил ","Выполнение проектов/мероприятий программы развития производительных сил ","Выполнение проектов/мероприятий программы развития производительных сил ","Выполнение проектов/мероприятий программы развития производительных сил ","Выполнение проектов/мероприятий программы развития производительных сил ","Выполнение проектов/мероприятий программы развития производительных сил ","Выполнение проектов/мероприятий программы развития производительных сил ","Выполнение проектов/мероприятий программы развития производительных сил ","Выполнение проектов/мероприятий программы развития производительных сил "]
[null,"Княгининский район","Княгининский район","Княгининский район","Княгининский район","Княгининский район","Княгининский район"]
[null,"II полугодие 2016","II полугодие 2016","II полугодие 2016","II полугодие 2016","II полугодие 2016","II полугодие 2016"]
[]
[null,"№","Наименование предприятия/хозяйствующего субъекта (с указанием типа - крупное, среднее, малое, ИП)/наименование поселения","Отрасль","Наименование проекта/мероприятия","Сроки реализации","Ответственный орган исполнительной власти Нижегородской области","Объем финансирования,  млн. руб.","Объем финансирования,  млн. руб.","Объем финансирования,  млн. руб.","Объем финансирования,  млн. руб.","Объем финансирования,  млн. руб.","Объем финансирования,  млн. руб.","Объем финансирования,  млн. руб.","Объем финансирования,  млн. руб.","Объем финансирования,  млн. руб.","Объем финансирования,  млн. руб.","Объем финансирования,  млн. руб.","Объем финансирования,  млн. руб.","Объем финансирования,  млн. руб.","Объем финансирования,  млн. руб.","Объем финансирования,  млн. руб.","Объем финансирования,  млн. руб.","Объем финансирования,  млн. руб.","Объем финансирования,  млн. руб.","Объем финансирования,  млн. руб.","Объем финансирования,  млн. руб.","Объем финансирования,  млн. руб.","Объем финансирования,  млн. руб.","Объем финансирования,  млн. руб.","Объем финансирования,  млн. руб.","Объем финансирования,  млн. руб.","Объем финансирования,  млн. руб.","Объем финансирования,  млн. руб.","Эффект от реализации проектов /мероприятий","Эффект от реализации проектов /мероприятий","Эффект от реализации проектов /мероприятий","Эффект от реализации проектов /мероприятий","Эффект от реализации проектов /мероприятий","Эффект от реализации проектов /мероприятий","Эффект от реализации проектов /мероприятий","Эффект от реализации проектов /мероприятий","Эффект от реализации проектов /мероприятий","Эффект от реализации проектов /мероприятий","Эффект от реализации проектов /мероприятий","Эффект от реализации проектов /мероприятий","Дополнительная информация о проекте/мероприятии (с указанием причин невыполнения)"]
[null,"№","Наименование предприятия/хозяйствующего субъекта (с указанием типа - крупное, среднее, малое, ИП)/наименование поселения","Отрасль","Наименование проекта/мероприятия","Сроки реализации","Ответственный орган исполнительной власти Нижегородской области","Всего, в т.ч.","Всего, в т.ч.","Всего, в т.ч.","Всего, в т.ч.","Всего, в т.ч.","Всего, в т.ч.","Федеральный бюджет","Федеральный бюджет","Федеральный бюджет","Федеральный бюджет","Федеральный бюджет","Федеральный бюджет","Областной бюджет","Областной бюджет","Областной бюджет","Областной бюджет","Областной бюджет","Областной бюджет","Местный бюджет","Местный бюджет","Местный бюджет","Местный бюджет","Местный бюджет","Местный бюджет","Частные инвестиции (собственные и привлеченные средства)","Частные инвестиции (собственные и привлеченные средства)","Частные инвестиции (собственные и привлеченные средства)","Объем отгруженной продукции (услуг), млн.руб.","Объем отгруженной продукции (услуг), млн.руб.","Объем отгруженной продукции (услуг), млн.руб.","Объем оборота розничной торговли и общественного питания, млн. руб.","Объем оборота розничной торговли и общественного питания, млн. руб.","Объем оборота розничной торговли и общественного питания, млн. руб.","Налоговые поступления в консолидированный бюджет, млн.руб.","Налоговые поступления в консолидированный бюджет, млн.руб.","Налоговые поступления в консолидированный бюджет, млн.руб.","Создано рабочих мест, ед.","Создано рабочих мест, ед.","Создано рабочих мест, ед.","Дополнительная информация о проекте/мероприятии (с указанием причин невыполнения)"]
[null,"№","Наименование предприятия/хозяйствующего субъекта (с указанием типа - крупное, среднее, малое, ИП)/наименование поселения","Отрасль","Наименование проекта/мероприятия","Сроки реализации","Ответственный орган исполнительной власти Нижегородской области","План","Профинансировано в рамках ПРПС","Освоено (кассовые расходы) в рамках ПРПС","% финансирования от плана","% освоения средств от объема финансирования","% освоения средств от плана","План","Профинансировано в рамках ПРПС","Освоено (кассовые расходы) в рамках ПРПС","% финансирования от плана","% освоения средств от объема финансирования","% освоения средств от плана","План","Профинансировано в рамках ПРПС","Освоено (кассовые расходы) в рамках ПРПС","% финансирования от плана","% освоения средств от объема финансирования","% освоения средств от плана","План","Профинансировано в рамках ПРПС","Освоено (кассовые расходы) в рамках ПРПС","% финансирования от плана","% освоения средств от объема финансирования","% освоения средств от плана","План","Факт","% от плана","План","Факт","% от плана","План","Факт","% от плана","План","Факт","% от плана","План","Факт","% от плана","Дополнительная информация о проекте/мероприятии (с указанием причин невыполнения)"]
[null,"Промышленность","Промышленность","Промышленность","Промышленность","Промышленность","Промышленность","Промышленность","Промышленность","Промышленность","Промышленность","Промышленность","Промышленность","Промышленность","Промышленность","Промышленность","Промышленность","Промышленность","Промышленность","Промышленность","Промышленность","Промышленность","Промышленность","Промышленность","Промышленность","Промышленность","Промышленность","Промышленность","Промышленность","Промышленность","Промышленность","Промышленность","Промышленность","Промышленность","Промышленность","Промышленность","Промышленность","Промышленность","Промышленность","Промышленность","Промышленность","Промышленность","Промышленность","Промышленность","Промышленность","Промышленность","Промышленность"]
[null,"2.277.","ОАО \"Княгининское молоко\"  / Крупное / ","Пищевая промышленность","2.277 Модернизация головного предприятия ОАО \"Княгининское молоко\"","2010 - 2018","Министерство сельского хозяйства и продовольственных ресурсов Нижегородской области ",48.8,32.700000000000003,79.7,67.008196721311492,243.73088685015287,163.31967213114754,7.1000000000000005,26.8,26.8,377.46478873239431,100,377.46478873239431,1.7,5.9,5.9,347.05882352941177,100,347.05882352941177,{"$nulls":6},40,47,117.5,1300,1305,100.38461538461539,null,null,null,45,45.2,100]
[null,"2.278.","ООО \"Крупко\" / Малое / ","Пищевая промышленность","2.278 Увеличение объёмов производства крупяных изделий ","2010 - 2018","Министерство сельского хозяйства и продовольственных ресурсов Нижегородской области ",{"$nulls":27},6.1000000000000005,6.1000000000000005,99.999999999999986,null,null,null,0.52,0.52,100]
[null,"2.280.","ООО \"Сервис-НН\" / Малое / ","Пищевая промышленность","2.280 Открытие производства минеральных вод и других безалкогольных напитков","2015 - 2018","Министерство сельского хозяйства и продовольственных ресурсов Нижегородской области ",0.5,null,0.5,0,null,100,{"$nulls":18},0.5,0.5,100,2,0,0,null,null,null,0.15,0.02,13.3,4,1,25,"Запуск запланирован на 2017 год"]
[null,"2.281.","ООО \"Водолей\"  / Малое / ","Пищевая промышленность","2.281 Открытие производства бутилированной воды","2013 - 2018","Министерство сельского хозяйства и продовольственных ресурсов Нижегородской области ",{"$nulls":27},6.6000000000000005,6.6000000000000005,99.999999999999986,null,null,null,0.6,0.6,100]
[null,"2.282.","ООО \"Колобок\" / Малое / ","Пищевая промышленность","2.282 Загрузка второй производственной линии на ООО \"Колобок\"","2016 - 2018","Министерство сельского хозяйства и продовольственных ресурсов Нижегородской области "]
[null,"1.725.","ООО \"Княгиниская ДСК\" / Малое / ","Строительство","1.725. Производство общестроительных работ по строительству автомобильных дорог, железных дорог и взлетно-посадочных полос аэродрома","2015 - 2018","Министерство промышленности, торговли и предпринимательства Нижегородской области",10.5,0,0,0,null,0,{"$nulls":6},2.5,0,0,0,null,0,{"$nulls":6},8,0,0,59,73,123.72881355932203,null,null,null,2.5,2.5,100]
[null,"Сельское хозяйство","Сельское хозяйство","Сельское хозяйство","Сельское хозяйство","Сельское хозяйство","Сельское хозяйство","Сельское хозяйство","Сельское хозяйство","Сельское хозяйство","Сельское хозяйство","Сельское хозяйство","Сельское хозяйство","Сельское хозяйство","Сельское хозяйство","Сельское хозяйство","Сельское хозяйство","Сельское хозяйство","Сельское хозяйство","Сельское хозяйство","Сельское хозяйство","Сельское хозяйство","Сельское хозяйство","Сельское хозяйство","Сельское хозяйство","Сельское хозяйство","Сельское хозяйство","Сельское хозяйство","Сельское хозяйство","Сельское хозяйство","Сельское хозяйство","Сельское хозяйство","Сельское хозяйство","Сельское хозяйство","Сельское хозяйство","Сельское хозяйство","Сельское хозяйство","Сельское хозяйство","Сельское хозяйство","Сельское хозяйство","Сельское хозяйство","Сельское хозяйство","Сельское хозяйство","Сельское хозяйство","Сельское хозяйство","Сельское хозяйство","Сельское хозяйство"]
[null,"2.279.","ООО \"Ивановское подворье\"  / Малое / ","Рыбоводство","2.279 Создание рыбоводного предприятия от инкубационного цеха до выращивания товарной рыбы","2010 - 2018","Министерство сельского хозяйства и продовольственных ресурсов Нижегородской области ",{"$nulls":27},1.5,1.5,100,null,null,null,0.25,0.25,100]
[null,"2.283.","ЗАО \"Покровская слобода\" / Малое / ","Животноводство","2.283 Реконструкция животноводческих комплексов на 200 голов ","2010 - 2018","Министерство сельского хозяйства и продовольственных ресурсов Нижегородской области ",{"$nulls":27},20,21,105,null,null,null,1.3,1.3,100,null,2]
[null,"2.284.","Сельскохозяйственные предприятия и организации, КФХ  / Малое / ","Растениеводство","2.284 Приобретение энергосберегающей, высокопроизводительной техники","2010 - 2018","Министерство сельского хозяйства и продовольственных ресурсов Нижегородской области ",28.7,null,40.4,0,null,140.76655052264809,{"$nulls":18},28.7,40.4,140.76655052264809,1.2,1.2,100,null,null,null,0.14000000000000001,0.14000000000000001,100]
[null,"2.285.","Сельскохозяйственные предприятия и организации, КФХ  / Малое / ","Животноводство","2.285 Приобретение племенного скота","2010 - 2018","Министерство сельского хозяйства и продовольственных ресурсов Нижегородской области ",5,null,5,0,null,100,{"$nulls":18},5,5,100,1.9000000000000001,1.9000000000000001,100,null,null,null,0.13,0.13,100]
[null,"2.286.","ЛПХ и КФХ / Малое / ","Сельское хозяйство","2.286 Развитие ЛПХ и КФХ, льготное кредитование ЛПХ и КФХ","2010 - 2018","Министерство сельского хозяйства и продовольственных ресурсов Нижегородской области ",1.5,0.10100000000000001,0.10100000000000001,6.7333333333333343,100.00000000000001,6.7333333333333343,null,0.08,0.08,null,100,null,null,2.1000000000000001E-2,2.1000000000000001E-2,null,100,{"$nulls":7},1.5,0,0]
[null,"2.287.","КФХ \"Полянская С.М., Амоян Х.О.\"  / Малое / ","Сельское хозяйство","2.287 Развитие семейных животноводческих ферм","2014 - 2018","Министерство сельского хозяйства и продовольственных ресурсов Нижегородской области ",{"$nulls":27},16.2,16.25,100.30864197530865,null,null,null,0.33,0.34,103.03030303030303]
[null,"2.288.","КФХ \"Гасоян В.М.\" / Малое / ","Сельское хозяйство","2.288 Развитие семейных животноводческих ферм","2014 - 2018","Министерство сельского хозяйства и продовольственных ресурсов Нижегородской области ",{"$nulls":27},24.2,24.5,101.2396694214876,null,null,null,1.45,1.5,103.44827586206897,null,2]
[null,"Торговля, общественное питание, платные услуги населению","Торговля, общественное питание, платные услуги населению","Торговля, общественное питание, платные услуги населению","Торговля, общественное питание, платные услуги населению","Торговля, общественное питание, платные услуги населению","Торговля, общественное питание, платные услуги населению","Торговля, общественное питание, платные услуги населению","Торговля, общественное питание, платные услуги населению","Торговля, общественное питание, платные услуги населению","Торговля, общественное питание, платные услуги населению","Торговля, общественное питание, платные услуги населению","Торговля, общественное питание, платные услуги населению","Торговля, общественное питание, платные услуги населению","Торговля, общественное питание, платные услуги населению","Торговля, общественное питание, платные услуги населению","Торговля, общественное питание, платные услуги населению","Торговля, общественное питание, платные услуги населению","Торговля, общественное питание, платные услуги населению","Торговля, общественное питание, платные услуги населению","Торговля, общественное питание, платные услуги населению","Торговля, общественное питание, платные услуги населению","Торговля, общественное питание, платные услуги населению","Торговля, общественное питание, платные услуги населению","Торговля, общественное питание, платные услуги населению","Торговля, общественное питание, платные услуги населению","Торговля, общественное питание, платные услуги населению","Торговля, общественное питание, платные услуги населению","Торговля, общественное питание, платные услуги населению","Торговля, общественное питание, платные услуги населению","Торговля, общественное питание, платные услуги населению","Торговля, общественное питание, платные услуги населению","Торговля, общественное питание, платные услуги населению","Торговля, общественное питание, платные услуги населению","Торговля, общественное питание, платные услуги населению","Торговля, общественное питание, платные услуги населению","Торговля, общественное питание, платные услуги населению","Торговля, общественное питание, платные услуги населению","Торговля, общественное питание, платные услуги населению","Торговля, общественное питание, платные услуги населению","Торговля, общественное питание, платные услуги населению","Торговля, общественное питание, платные услуги населению","Торговля, общественное питание, платные услуги населению","Торговля, общественное питание, платные услуги населению","Торговля, общественное питание, платные услуги населению","Торговля, общественное питание, платные услуги населению","Торговля, общественное питание, платные услуги населению"]
[null,"10.99 ","Администрация Княгининского муниципального района / Среднее / ","Розничная торговля","10.99 Строительство здания на площади \"Ярмарки выходного дня\"","2016 - 2018","Администрация муниципального района (городского округа)",3.56,0.1,0.1,2.8089887640449436,100,2.8089887640449436,{"$nulls":12},3.56,0.1,0.1,2.8089887640449436,100,2.8089887640449436,{"$nulls":6},0.5,0,0,0.05,0,0,2,0,0,"Заложен фундамент, строительство планируется в 2017 году"]
[null,"1.726.","ЗАО \"ИКС 5 Недвижимость\" / Крупное / ","Торговля","1.726. Строительство магазина \"Пятерочка\"","2014 - 2018","Министерство промышленности, торговли и предпринимательства Нижегородской области",{"$nulls":30},84,100.9,120.11904761904762,0.88,0.9,102.27272727272727]
[null,"1.727.","ООО \"Магистраль\" / Малое / ","Торговля, общественное питание","1.727. Строительство гостиницы","2016 - 2018","Министерство промышленности, торговли и предпринимательства Нижегородской области"]
[null,"1.728.","МУП \"Княгининское ЖКХ\" / Среднее / ","Платные услуги","1.728. Строительство муниципальной бани","2014 - 2018","Министерство промышленности, торговли и предпринимательства Нижегородской области",{"$nulls":27},0.86,0.70000000000000007,81.395348837209298,null,null,null,0.14000000000000001,0.14000000000000001,100]
[null,"1.729.","ООО \"Магистраль\" / Малое / ","Торговля, общественное питание","1.729. Реконструкция кафе 45-й км","2015 - 2018","Министерство промышленности, торговли и предпринимательства Нижегородской области",{"$nulls":30},1.5,8.5,566.66666666666663,0.08,0.08,100,5,5,100]
[null,"1.730.","ИП \"Тюльнев\" / ИП / ","Торговля, общественное питание","1.730. Реконструкция здания столовой в кафе на 90 посадочных мест","2014 - 2018","Министерство промышленности, торговли и предпринимательства Нижегородской области",{"$nulls":30},3.2,3.2,100,0.25,0.25,100]
[null,"1.731.","ИП, малые предприятия / ИП / ","Розничная торговля","1.731. Строительство, реконструкция зданий 4-х магазинов в г.Княгинино","2016 - 2018","Министерство промышленности, торговли и предпринимательства Нижегородской области",7,null,7,0,null,100,{"$nulls":18},7,7,100,null,null,null,3,3,100,0.3,0.3,100,7,7,100]
[null,"ИТОГО",{"$nulls":5},{"$f":"SUM(H10:H15,H17:H21,H22:H23,H25:H29,H30:H31)","v":105.56},{"$f":"SUM(I10:I15,I17:I21,I22:I23,I25:I29,I30:I31)","v":32.901000000000003},132.80099999999999,31.2,403.6,125.8,7.1000000000000005,26.88,26.88,378.6,100,378.6,4.2,5.9210000000000003,5.9210000000000003,141,100,141,3.56,0.1,0.1,2.8,100,2.8,90.7,99.9,110.1,1439.56,1457.75,101.3,92.2,115.60000000000001,125.4,54.07,54.170000000000009,100.1,18,17,94.4]